Cogmind - Beta 16 @@@ ROGUE MODE // 2026.01.03 @ 23:40:48 Player: mephiles96 Result: Destroyed by as-19453 with Assembled Maul Performance ------------- Evolutions (0) 0 Regions Visited (4) 800 Robots Destroyed (17) 85 Value Destroyed (382) 382 Prototype IDs (23) 460 Alien Tech Used (0) 0 Bonus (300) 300 TOTAL SCORE: 2027 Bonus ------- Aligned with FarCom 300 Cogmind --------- Core Integrity 0/250 Matter 294/300 Energy 100/100 System Corruption 10% Temperature Cool (0) Movement Core (250) Ox4 Location -9/Mines Parts ------- > --- POWER (1) -------- (None) > --- PROPULSION (2) --- Aluminum Leg > --- UTILITY (2) ------ Medium Storage Unit > --- WEAPON (2) ------- Heavy Hammer > --- INVENTORY (10) --- Large Storage Unit High-capacity Matter Pod (200) Improved Terrain Scanner Tractor Beam Particle Gun AWS/Autocannon Mining Laser Peak State ------------ > --- POWER ------------ Light Nuclear Core > --- PROPULSION ------- Aluminum Leg Aluminum Leg > --- UTILITY ---------- Medium Storage Unit Seismic Detector > --- WEAPON ----------- Particle Gun Light Assault Rifle > --- INVENTORY -------- Aluminum Leg Large Storage Unit High-capacity Matter Pod Improved Terrain Scanner Tractor Beam AWS/Autocannon Mining Laser Heavy Hammer [Rating: 14] Favorites ----------- Power Light Nuclear Core Engine Light Ion Engine Power Core Light Nuclear Core Propulsion Aluminum Leg Treads Light Treads Leg Aluminum Leg Wheel Wheel Utility Medium Storage Unit Device Seismic Detector Storage Medium Storage Unit Weapon Light Assault Rifle Energy Gun Small Laser Ballistic Gun Light Assault Rifle Impact Weapon Heavy Hammer Build | -11 -10 -10 -10 -9 ------- Run | Yrd Mat Min Exi Min Slots Evolved . | . . . . . Power . | . . . . . Propulsion . | . . . . . Utility . | . . . . . Weapon . | . . . . . Parts Attached 28 | 10 7 5 . 6 Power 4 | 1 1 1 . 1 Engine 3 | 1 1 . . 1 Core 1 | . . 1 . . Reactor . | . . . . . Propulsion 9 | 3 . 4 . 2 Treads 2 | 2 . . . . Leg 6 | . . 4 . 2 Wheel 1 | 1 . . . . Hover . | . . . . . Flight . | . . . . . Utility 6 | 4 2 . . . Device 4 | 3 1 . . . Storage 2 | 1 1 . . . Processor . | . . . . . Hackware . | . . . . . Protection . | . . . . . Artifact . | . . . . . Weapon 9 | 2 4 . . 3 Energy Gun 4 | 1 2 . . 1 Energy Cannon . | . . . . . Ballistic Gun 4 | 1 2 . . 1 Ballistic Cannon . | . . . . . Launcher . | . . . . . Special Weapon . | . . . . . Impact Weapon 1 | . . . . 1 Slashing Weapon . | . . . . . Piercing Weapon . | . . . . . Special Melee Weapon . | . . . . . Unidentified Prototypes . | . . . . . Parts Lost 10 | . 2 1 . 7 Power 3 | . 1 . . 2 Propulsion 3 | . . 1 . 2 Utility 1 | . . . . 1 Weapon 3 | . 1 . . 2 Highest Loss Streak 4 | . 1 1 . 4 To Critical Strikes . | . . . . . Average Backups 8 | 5 8 10 8 7 Power . | . . . . . Propulsion 1 | 2 2 2 1 . Utility 3 | . 3 4 4 4 Weapon 3 | 1 3 4 3 3 Tool/Special . | . . . . . Unused Backups 8 | 1 1 . 1 5 Power . | . . . . . Propulsion 1 | 1 . . . . Utility 5 | . 1 . 1 3 Weapon 2 | . . . . 2 Tool/Special . | . . . . . Average Slot Usage (%) 96 | . 98 99 100 88 Engine 5 | . 13 . . 6 Core 7 | . . 13 14 3 Treads 7 | . 27 1 . . Leg 19 | . . 26 28 27 Device 13 | . 14 14 14 10 Storage 14 | . 14 14 14 14 Energy Gun 3 | . 7 . . 9 Ballistic Gun 22 | . 21 28 28 13 Peak Build Rating 14 | 10 8 10 12 14 Average Rating 9 | 7 7 9 11 11 On Entrance 7 | . 8 8 10 12 Avg Prop Armor Cover (%) 11 | 11 . . . . Naked Turns . | . . . . . Heaviest Build 20 | 12 19 18 18 20 Greatest Support 40 | 40 40 20 20 20 Greatest Overweight (x) 4 | 1 . 1 . 4 Average Overweight (x) . | . . . . . Largest Inventory Capacity 10 | 8 10 10 10 10 Average Capacity 9 | 7 9 10 10 10 Most Carried 10 | 8 10 10 10 10 Average Carried 9 | 5 8 10 9 9 Final Capacity 10 | 8 10 10 10 10 Final Carried 10 | 8 10 10 10 9 Class Distribution -------------------- 59% | Scavenger-Mutant 40% | Mutant Dominant Class ---------------- Mutant | -10/Materials Scavenger-Mutant | -10/Mines Scavenger-Mutant | -10/Exiles Scavenger-Mutant | -9/Mines Resources | -11 -10 -10 -10 -9 ----------- Run | Yrd Mat Min Exi Min Matter Collected 874 | 316 213 233 . 112 Remotely . | . . . . . Salvage Created 673 | 150 92 168 . 263 Parts 42 | 14 8 9 . 11 Haulers Intercepted . | . . . . . Recyclers Shooed . | . . . . . Parts Field Recycled . | . . . . . Retrieved Matter . | . . . . . Parts Self-Destructed . | . . . . . Prevented . | . . . . . Parts Restored . | . . . . . Kills | -11 -10 -10 -10 -9 ------- Run | Yrd Mat Min Exi Min Combat Hostiles Destroyed 21 | . 4 4 . 13 Melee 5 | . . . . 5 Guns 16 | . 4 4 . 8 Classes Destroyed 6 | 3 2 . . 1 Worker 1 | 1 . . . . Tunneler 2 | 2 . . . . Recycler 1 | 1 . . . . Swarmer 5 | . 2 . . 3 Grunt 8 | . 2 4 . 2 Assembled 8 | . . . . 8 Best Kill Streak 6 | 4 2 2 . 6 Combat Bots Only 6 | . 2 2 . 6 Max Kills in Single Turn 1 | 1 1 1 . 1 Gunslinging . | . . . . . Exploded . | . . . . . Melee 1 | . . . . 1 Uniques/NPCs Destroyed . | . . . . . Combat | -11 -10 -10 -10 -9 -------- Run | Yrd Mat Min Exi Min Hostile Shots Fired 187 | . 79 26 . 82 Missed 46 | . 20 7 . 19 Hits 141 | . 59 19 . 63 Melee 10 | . . . . 10 Projectile 131 | . 59 19 . 53 Critical Strikes 1 | . . . . 1 Part Disruptions 2 | . . . . 2 Damage Taken 1629 | . 514 258 . 857 Core 260 | . 64 30 . 166 Absorbed by Shields . | . . . . . Regen/Repaired (Parts) 121 | . 121 . . . Core Remaining (%) 100 | 100 . . . . Volleys Fired 85 | 11 19 21 . 34 Largest 2 | 2 2 2 . 2 Hottest 85 | 60 80 40 . 85 Shots Fired 143 | 22 33 42 . 46 Gun 143 | 22 33 42 . 46 Cannon . | . . . . . Launcher . | . . . . . Special . | . . . . . Kinetic 105 | 11 14 42 . 38 Thermal 38 | 11 19 . . 8 Explosive . | . . . . . Electromagnetic . | . . . . . Robot Hit Streak 9 | 6 5 8 . 9 Robot Miss Streak 5 | 3 5 2 . 2 Penetration Max . | . . . . . Secondary Targets 4 | . 1 . . 3 Max Gunslinging Chain 1 | . 1 . . 1 Shots Hit Robots 104 | 13 20 31 . 40 Core Hits 44 | 5 6 13 . 20 Critical Kills 1 | . . . . 1 Critical Parts Destroyed 2 | . . 1 . 1 Critical Strikes 3 | . . 1 . 2 Destroy 1 | . . 1 . . Smash 2 | . . . . 2 Melee Attacks 13 | . . . . 13 Impact 13 | . . . . 13 Slashing . | . . . . . Piercing . | . . . . . Sneak Attacks . | . . . . . Combat Hostiles . | . . . . . Follow-up Attacks . | . . . . . Damage Inflicted 1277 | 155 235 254 . 633 Guns 951 | 155 235 254 . 307 Cannons . | . . . . . Explosions . | . . . . . Melee 326 | . . . . 326 Ramming . | . . . . . Kinetic 628 | 76 70 254 . 228 Thermal 323 | 79 165 . . 79 Explosive . | . . . . . Electromagnetic . | . . . . . Impact 326 | . . . . 326 Slashing . | . . . . . Piercing . | . . . . . Highest Corruption 10 | . . . . 10 Average Corruption 7 | . . . . 7 Corruption Purged . | . . . . . Corruption Blocked . | . . . . . Effects 5 | . . . . 5 Matter Fused 3 | . . . . 3 Energy Discharges 1 | . . . . 1 Weapon Failures 1 | . . . . 1 Overload Shots . | . . . . . Overflow Damage 67 | . . . . 67 Projectiles . | . . . . . Explosions . | . . . . . Melee 67 | . . . . 67 Knockbacks . | . . . . . Impact . | . . . . . Kinetic . | . . . . . Secondary . | . . . . . Self-Inflicted Damage . | . . . . . Shots . | . . . . . Rammed . | . . . . . Targets Rammed . | . . . . . Kicked . | . . . . . Crushed . | . . . . . Highest Temperature 132 | . 108 46 . 132 Average Temperature 37 | . 48 16 . 44 Received Heat Transfer 527 | . 78 144 . 305 Siege Activations . | . . . . . Martial Activations . | . . . . . Shielding Activations . | . . . . . Robots Disrupted . | . . . . . Combat Hostiles . | . . . . . Robots Corrupted . | . . . . . Combat Hostiles . | . . . . . Parts Fried . | . . . . . Impact Corruptions 3 | . . . . 3 Robots Melted . | . . . . . Combat Hostiles . | . . . . . Parts Melted . | . . . . . Heat Transferred 735 | 175 375 . . 185 Parts Sabotaged . | . . . . . Parts Stolen . | . . . . . Parts Stripped . | . . . . . Power Chain Reactions . | . . . . . Alert | -11 -10 -10 -10 -9 ------- Run | Yrd Mat Min Exi Min Maximum Alert Level . | . . . . . Low Security (%) 100 | 100 100 100 . 100 Level 1 . | . . . . . Level 2 . | . . . . . Level 3 . | . . . . . Level 4 . | . . . . . Level 5 . | . . . . . High Security . | . . . . . Max Security . | . . . . . Peak Influence 70 | 10 65 48 . 70 Initial . | . . . . . Average 11 | . 14 8 . 16 Influence Increases 432 | 20 162 130 . 120 Destroy 0b10 Robot/C 260 | . 80 80 . 100 Destroy 0b10 Robot/NC 20 | 20 . . . . Destroy Leader 60 | . 20 20 . 20 Successful Hack 17 | . 17 . . . Lose Combat Pursuer 75 | . 45 30 . . Influence Decreases 432 | 20 162 106 24 120 Entered New Map 24 | . . . 24 . Time Decay 378 | 20 142 106 . 110 Lost Part 30 | . 20 . . 10 Squads Dispatched 1 | . 1 . . . Investigation . | . . . . . Extermination . | . . . . . Reinforcement 1 | . 1 . . . Assault . | . . . . . Garrison . | . . . . . Intercept . | . . . . . Searches Triggered . | . . . . . Construction Impeded . | . . . . . Haulers Reinforced . | . . . . . Active Scanning Responses . | . . . . . Cargo Convoy Interrupts . | . . . . . Stealth | -11 -10 -10 -10 -9 --------- Run | Yrd Mat Min Exi Min Distress Signals . | . . . . . Communications Jammed . | . . . . . Distress Signals . | . . . . . Times Spotted 36 | . 13 5 . 18 Peak Tracking Total 5 | . 4 2 . 5 Tactical Retreats 3 | . 1 2 . . Traps | -11 -10 -10 -10 -9 ------- Run | Yrd Mat Min Exi Min Traps Triggered . | . . . . . Indirectly . | . . . . . Trap Hack Attempts . | . . . . . Triggered . | . . . . . Disarmed . | . . . . . Reprogrammed . | . . . . . Reused . | . . . . . Traps Extracted . | . . . . . Installed . | . . . . . Triggered . | . . . . . Machines | -11 -10 -10 -10 -9 ---------- Run | Yrd Mat Min Exi Min Machines Disabled . | . . . . . Max in Single Turn . | . . . . . Machines Repaired . | . . . . . Machines Dismantled . | . . . . . Machines Sabotaged . | . . . . . Overloaded Fab Kills . | . . . . . Hacking | -11 -10 -10 -10 -9 --------- Run | Yrd Mat Min Exi Min Machines Accessed 7 | . 5 1 1 . Terminals 5 | . 4 1 . . Fabricators . | . . . . . Repair Stations 1 | . 1 . . . Recycling Units . | . . . . . Scanalyzers . | . . . . . Garrison Access . | . . . . . Total Hacks 15 | . 10 4 1 . Successful 9 | . 7 1 1 . Failed 6 | . 3 3 . . Catastrophic 1 | . 1 . . . Database Lockouts . | . . . . . Manual 11 | . 7 3 1 . Terminals 12 | . 8 4 . . Fabricators . | . . . . . Repair Stations 2 | . 2 . . . Recycling Units . | . . . . . Scanalyzers . | . . . . . Garrison Access . | . . . . . Terminal Hacks 7 | . 5 1 1 . Record 1 | . 1 . . . Level Access Points 1 | . 1 . . . Branch Access Points 1 | . 1 . . . Unreport Threat 1 | . 1 . . . Hauler Manifests 1 | . 1 . . . Zone Layout 1 | . . 1 . . Proto ID Catalog 1 | . . . 1 . Fabricator Hacks . | . . . . . Repair Station Hacks 2 | . 2 . . . Scan Component 1 | . 1 . . . Repair 1 | . 1 . . . Recycling Unit Hacks . | . . . . . Scanalyzer . | . . . . . Garrison Access Hacks . | . . . . . Unauthorized Hacks . | . . . . . Terminals . | . . . . . Fabricators . | . . . . . Repair Stations . | . . . . . Recycling Units . | . . . . . Scanalyzers . | . . . . . Garrison Access . | . . . . . Data Cores Recovered . | . . . . . Used . | . . . . . Hacking Detections 4 | . 3 1 . . Full Trace Events . | . . . . . Feedback Events . | . . . . . Feedback Blocked . | . . . . . Robot Schematics Acquired . | . . . . . Robots Built . | . . . . . Authchips . | . . . . . Time . | . . . . . Total Robot Build Rating . | . . . . . Part Schematics Acquired . | . . . . . Parts Built . | . . . . . Authchips . | . . . . . Time . | . . . . . Total Part Build Rating . | . . . . . Part Studies Acquired . | . . . . . Parts Repaired 1 | . 1 . . . Time 26 | . 26 . . . Parts Recycled . | . . . . . Recycled Matter . | . . . . . Retrieved Matter . | . . . . . Retrieved Components . | . . . . . Parts Scanalyzed . | . . . . . Part Schematics Acquired . | . . . . . Parts Damaged . | . . . . . Bothacking | -11 -10 -10 -10 -9 ------------ Run | Yrd Mat Min Exi Min Used RIF Installer . | . . . . . Robots Hacked . | . . . . . Non-combat . | . . . . . Combat . | . . . . . Robot Hacks Applied . | . . . . . Relay Couplers Released . | . . . . . Fabnet Peak Effective % . | . . . . . Robots Rewired . | . . . . . Allies Hacked . | . . . . . Hacks Repelled . | . . . . . Allies | -11 -10 -10 -10 -9 -------- Run | Yrd Mat Min Exi Min Total Allies . | . . . . . Largest Group . | . . . . . Highest-Rated Group . | . . . . . Highest-Rated Ally . | . . . . . Total Orders . | . . . . . Ally Attacks . | . . . . . Total Damage . | . . . . . Kills . | . . . . . Allies Corrupted . | . . . . . Allies Melted . | . . . . . Intel | -11 -10 -10 -10 -9 ------- Run | Yrd Mat Min Exi Min Active Infowar (turns) 2008 | 143 524 699 302 340 Terrain 108 | 108 . . . . Seismic 1900 | 35 524 699 302 340 Robot Analysis Total . | . . . . . Derelict Logs Recovered 2 | . . 1 . 1 Drone Launches . | . . . . . Drone Recoveries . | . . . . . Exploration | -11 -10 -10 -10 -9 ------------- Run | Yrd Mat Min Exi Min Turns Passed 2213 | 245 524 699 302 443 Spaces Moved 1398 | 126 241 523 249 259 Core 21 | 20 . . . 1 Treads 351 | 105 241 5 . . Legs 1025 | . . 518 249 258 Wheels 1 | 1 . . . . Hover . | . . . . . Flight . | . . . . . Fastest Speed 50 | 50 160 120 120 120 Average Speed 130 | 148 160 120 120 121 Slowest Speed 250 | 160 160 190 120 250 Overloaded Moves . | . . . . . Propulsion Burnouts . | . . . . . Robots Hopped . | . . . . . Potential Cave-ins . | . . . . . Cave-ins Triggered . | . . . . . Exploration Rate (%) 50 | 7 45 95 62 44 Regions Visited 4 Branch Regions 3 Pre-discovered Areas . | . . . . . Known Exits Taken 1 | . 1 . . . Unknown Exits Taken 3 | 1 . 1 1 . Scrap Searched 4 | . . 1 . 3 Spaces Dug . | . . . . . Terrain Destroyed . | . . . . . Melee . | . . . . . Projectile . | . . . . . AOE . | . . . . . Terrain Rammed . | . . . . . Walls Destroyed . | . . . . . Machines Disabled . | . . . . . Actions | -11 -10 -10 -10 -9 --------- Run | Yrd Mat Min Exi Min Total 1642 | 159 347 557 254 325 Wait 84 | . 69 6 . 9 Move 1394 | 125 240 522 248 259 Hop . | . . . . . Pick Up 19 | 10 6 . 2 1 Fast Attach 11 | 7 1 1 . 2 Attach 4 | 1 2 . . 1 Detach . | . . . . . Swap 15 | 2 6 4 . 3 Drop 17 | 3 4 3 4 3 Fire 85 | 11 19 21 . 34 Melee 13 | . . . . 13 Ram . | . . . . . Kick . | . . . . . Crush . | . . . . . Escape Stasis . | . . . . . Rewire . | . . . . . Trap . | . . . . . Miscellaneous . | . . . . . Route ------- -11/Scrapyard -10/Materials (discovered 5 exits: Mat x3 / *Min x2) -10/Mines (discovered 3 exits: *Mat x2 / *Exi) -10/Exiles -9/Mines (discovered 1 exit: Mat) History --------- Turn | Location | Event 23 | -11/Scrapyard | Discovered new exit (range 15) 246 | -11/Scrapyard | Entered Materials 304 | -10/Materials | Build established: Mutant 575 | -10/Materials | Repaired Lgt. Treads 645 | -10/Materials | Identified exit to Mines 645 | -10/Materials | Identified exit to Materials 770 | -10/Materials | Entered Mines 794 | -10/Mines | Met a Derelict bent on vengeance 884 | -10/Mines | Discovered exit to Materials (range 12) 1046 | -10/Mines | Discovered exit to Materials (range 8) 1100 | -10/Mines | Build established: Scavenger-Mutant 1225 | -10/Mines | Deemed a non-threat by the Exiles lab entrance 1226 | -10/Mines | Discovered new exit (range 5) 1319 | -10/Mines | Learned location of 1 exit from Materials 1469 | -10/Mines | Entered Exiles 1498 | -10/Exiles | Met 8R-AWN 1519 | -10/Exiles | Met EX-HEX 1558 | -10/Exiles | Met EX-BIN 1573 | -10/Exiles | Aligned with FarCom system 1574 | -10/Exiles | Given EX-Vault access code 1603 | -10/Exiles | Opened EX-Vault 1617 | -10/Exiles | Found AWS/Autocannon 1654 | -10/Exiles | Exiles lab attacked by MAIN.C 1758 | -10/Exiles | Discovered new exit (range 14) 1771 | -10/Exiles | Left Exiles lab with AWS/Autocannon 1771 | -10/Exiles | Entered Mines 1783 | -9/Mines | Core integrity fell below 50% 1993 | -9/Mines | Found a Scrap Suit stashed away for nefarious purposes 2067 | -9/Mines | Identified exit to Materials 2081 | -9/Mines | Assembled infested the area 2086 | -9/Mines | Assisted by a Guerilla fighting off Assembled 2164 | -9/Mines | System corruption reached 10% 2177 | -9/Mines | Core integrity fell below 20% 2194 | -9/Mines | Lost 4 parts (1p1n1u1w) 2214 | -9/Mines | Destroyed by as-19453 with Assembled Maul Last Messages --------------- 02168_ as-15674 destroyed. 02178_ as-75004 suffers critical hit (Smash). 02178_ Destroyed Asb. Heavy Rifle. 02178_ as-75004 system corrupted by crushing effect. 02178_ as-75004 destroyed. 02184_ System corrupted: Matter fused (-5). 02190_ as-47614 destroyed. 02197_ Aluminum Leg destroyed. 02198_ Destroyed Asb. Hover Unit. 02198_ as-32526 system corrupted by crushing effect. 02201_ as-32526 suffers critical hit (Smash). 02201_ as-32526 destroyed. 02206_ Destroyed Asb. Hover Unit. 02206_ as-43860 system corrupted by crushing effect. 02206_ as-43860 destroyed. 02211_ Knocked back. 02213_ System corrupted: Matter fused (-6). Map ----- +----------------------------------------------------+ | ?????????????????????????????????????????????????? | | ?????????????????????????????????????????????????? | | ?????????????????????????????????????????????????? | | ?????????????????????????????????????????????????? | | ?????????????????????????????????????????????????? | | ?????????????????????????????????????????????????? | | ?????????????????????????????????????????????????? | | ?????????????????????????????????????????????????? | | ?????????????????????????????????????????????????? | | ?????????????????????????????????????????????????? | | ?????????????????????????????????????????????????? | | ?????????????????????????????????????????????????? | | ?????????????????????????????????????????????????? | | ?????????????????????????????????????????????????? | | ?????????????????????????????????????????????????? | | ?????????????????????????????????????????????????? | | ?????????????????????????????????????????????????? | | ?????????????????????????????????????????????????? | | ?????????????????????????????????????????????????? | | ?????????????????????????????????????????????????? | | ???????????????????????????????#?????????????????? | | ?????????????????????????????? #????????